bitfinex-derivatives/quotes_SOLF0:USTF0_20260210
["timestamp","ask_amount","ask_price","bid_price","bid_amount"]
[1770722541358,9.1105028,84.253,84.219,10.6972]
[1770722541555,4.07382395,84.256,84.211,3.86060849]
[1770722541556,10.6928,84.255,84.211,3.86060849]
[1770722541857,4.02933284,84.253,84.211,3.86060849]
[1770722542065,4.02933284,84.251,84.201,3.95350932]
[1770722542264,4.02933284,84.249,84.201,3.95350932]
[1770722542557,4.02933284,84.247,84.201,3.95350932]
[1770722543865,4.02933284,84.247,84.21,10.6984]
[1770722544763,4.02933284,84.247,84.201,3.95350932]
[1770722544764,4.02933284,84.247,84.212,10.6981]
[1770722545265,4.02933284,84.247,84.212,14.65160932]
[1770722546463,4.02933284,84.247,84.213,3.95350932]
[1770722548263,4.02933284,84.238,84.202,3.95350932]
[1770722548970,4.02933284,84.25,84.202,3.95350932]
[1770722549264,9.10829365,84.249,84.202,3.95350932]
[1770722549462,9.10829365,84.248,84.202,3.95350932]
[1770722549768,9.10829365,84.247,84.215,10.6977]
[1770722549967,9.10829365,84.246,84.215,10.6977]
[1770722550168,9.10829365,84.245,84.215,10.6977]
[1770722550368,9.10829365,84.244,84.215,10.6977]
[1770722550570,4.02933284,84.25,84.215,10.6977]
[1770722550770,9.10786944,84.249,84.215,10.6977]
[1770722550970,9.10786944,84.248,84.226,10.6963]
[1770722551173,4.02933284,84.261,84.216,3.95350932]
[1770722551366,9.10891776,84.26,84.216,3.95350932]
[1770722551568,9.10891776,84.259,84.216,3.95350932]
[1770722551768,10.6925,84.257,84.219,14.65070932]
[1770722552070,9.10891776,84.256,84.219,14.65070932]
[1770722552266,9.10891776,84.255,84.219,14.65070932]
[1770722552460,9.10891776,84.254,84.219,14.65070932]
[1770722552665,9.10891776,84.253,84.219,14.65070932]
[1770722552864,10.6925,84.257,84.219,14.65070932]
[1770722552865,9.10891776,84.252,84.219,14.65070932]
[1770722553062,9.10891776,84.251,84.219,14.65070932]
[1770722553270,10.6925,84.257,84.219,14.65070932]
[1770722553472,9.10921797,84.256,84.219,14.65070932]
[1770722553671,4.02933284,84.253,84.212,10.6981]
[1770722553981,4.02933284,84.251,84.212,10.6981]
[1770722554169,4.02933284,84.249,84.212,10.6981]
[1770722554370,4.02933284,84.247,84.212,10.6981]
[1770722554975,4.02933284,84.259,84.217,10.6975]
[1770722555170,4.02933284,84.257,84.217,10.6975]
[1770722555367,4.02933284,84.255,84.217,10.6975]
[1770722555674,9.1091238,84.254,84.217,10.6975]
[1770722555873,9.1091238,84.253,84.217,10.6975]
[1770722556072,9.1091238,84.252,84.217,10.6975]
[1770722556268,9.1091238,84.251,84.217,10.6975]
[1770722556474,9.1091238,84.25,84.217,10.6975]
[1770722556666,9.1091238,84.249,84.217,10.6975]
[1770722556871,9.1091238,84.248,84.217,10.6975]
[1770722557172,9.1091238,84.247,84.217,10.6975]
[1770722557375,9.11322425,84.246,84.213,3.95350932]
[1770722557574,4.02933284,84.251,84.213,3.95350932]
[1770722557776,4.02933284,84.249,84.2,3.95350932]
[1770722557970,4.02933284,84.247,84.2,3.95350932]
[1770722558274,4.02933284,84.245,84.2,3.95350932]
[1770722558470,4.02933284,84.243,84.2,3.95350932]
[1770722558667,4.02933284,84.243,84.201,10.6995]
[1770722560176,4.02933284,84.241,84.201,10.6995]
[1770722560375,4.02933284,84.239,84.201,10.6995]
[1770722560573,9.11629313,84.238,84.201,10.6995]
[1770722560775,4.02933284,84.239,84.201,10.6995]
[1770722560974,9.11724357,84.238,84.201,10.6995]
[1770722561168,4.02933284,84.239,84.201,10.6995]
[1770722561364,9.11723642,84.238,84.201,10.6995]
[1770722561569,4.02933284,84.239,84.201,10.6995]
[1770722561770,9.11850314,84.238,84.201,10.6995]
[1770722561977,9.11850314,84.237,84.201,10.6995]
[1770722562174,4.02933284,84.239,84.201,10.6995]
[1770722562472,9.11955608,84.238,84.201,10.6995]
[1770722562675,9.11955608,84.237,84.201,10.6995]
[1770722562873,4.02933284,84.239,84.201,10.6995]
[1770722563075,9.121041,84.238,84.201,10.6995]
[1770722563275,9.121041,84.237,84.201,10.6995]
[1770722563474,9.121041,84.236,84.201,10.6995]
[1770722563782,4.02933284,84.239,84.201,10.6995]
[1770722563975,9.1227845,84.238,84.201,10.6995]
[1770722564274,9.1227845,84.237,84.201,10.6995]
[1770722564579,9.1227845,84.236,84.201,10.6995]
[1770722564773,9.1227845,84.235,84.201,10.6995]
[1770722564973,9.1227845,84.234,84.201,10.6995]
[1770722565175,9.1227845,84.233,84.201,10.6995]
[1770722565372,9.1227845,84.232,84.201,10.6995]
[1770722565677,14.72423284,84.239,84.201,10.6995]
[1770722565873,9.11316467,84.238,84.201,10.6995]
[1770722566178,9.11316467,84.237,84.201,10.6995]
[1770722566471,6.467e-05,84.272,84.23,3.69121412]
[1770722566677,5.71007388,84.288,84.23,3.69121412]
[1770722566883,10.6897,84.279,84.232,10.6955]
[1770722567067,5.71007388,84.279,84.23,3.69121412]
[1770722567673,10.6906,84.272,84.23,3.69121412]
[1770722567979,16.40067388,84.272,84.23,3.69121412]
[1770722568180,5.71007388,84.271,84.23,3.69121412]
[1770722568576,5.81412938,84.265,84.217,10.6975]
[1770722568971,5.81412938,84.262,84.217,10.6975]
[1770722569481,3.69121412,84.26,84.208,10.6986]
[1770722569781,5.81412938,84.259,84.208,10.6986]
[1770722570681,10.6926,84.256,84.208,10.6986]
[1770722570880,5.81519821,84.255,84.208,10.6986]
[1770722571776,5.81519821,84.246,84.2,14.39081412]
[1770722571981,5.81519821,84.246,84.2,10.6996]
[1770722572786,16.48789922,84.245,84.2,10.6996]
[1770722573785,16.48789922,84.245,84.2,14.39081412]
[1770722574891,5.79965678,84.244,84.2,14.39081412]
[1770722576688,10.6943,84.243,84.2,14.39081412]
[1770722576890,10.6943,84.243,84.2,14.39228708]
[1770722581294,10.6934,84.25,84.212,10.6981]
[1770722583100,10.6921,84.261,84.218,10.6974]
[1770722583297,8.89782239,84.26,84.22,3.69268708]
[1770722583497,10.6921,84.261,84.22,3.69268708]
[1770722584988,16.47372769,84.261,84.22,3.69268708]
[1770722587298,16.50150204,84.259,84.22,3.69268708]
[1770722587600,5.80930204,84.258,84.22,3.69268708]
[1770722588797,10.6926,84.257,84.22,3.69268708]
[1770722589194,10.6926,84.257,84.216,10.6976]
[1770722589598,5.80930204,84.258,84.216,10.6976]
[1770722590100,5.80930204,84.258,84.222,10.6969]
[1770722590796,10.6916,84.265,84.222,10.6969]
[1770722590999,8.89043073,84.264,84.222,10.6969]
[1770722591201,10.6916,84.265,84.23,3.69268708]
[1770722591402,5.84594072,84.268,84.23,3.69268708]
[1770722591903,25.42686809,84.267,84.23,3.69268708]
[1770722592104,8.88972737,84.266,84.225,10.6965]
[1770722592304,8.88972737,84.265,84.225,10.6965]
[1770722592505,5.84594072,84.266,84.225,10.6965]
[1770722592695,8.88901742,84.265,84.225,10.6965]
[1770722592900,5.84594072,84.266,84.225,10.6965]
[1770722593108,8.88901742,84.265,84.225,10.6965]
[1770722593306,5.84594072,84.266,84.225,10.6965]
[1770722593508,5.84852468,84.276,84.235,10.6951]
[1770722593699,8.88938589,84.275,84.235,10.6951]
[1770722594000,5.84852468,84.276,84.235,10.6951]
[1770722594200,8.88929522,84.275,84.235,10.6951]
[1770722594405,5.84852468,84.276,84.235,10.6951]
[1770722595410,10.6906,84.273,84.235,10.6951]
[1770722599906,10.6906,84.273,84.23,3.69268708]
[1770722599907,10.6893,84.283,84.24,3.69268708]
[1770722600506,16.57795763,84.283,84.24,3.69268708]
[1770722600708,16.57795763,84.283,84.246,10.6938]
[1770722601004,94.74,84.328,84.23,94.74]
[1770722601005,5.88865763,84.313,84.27,3.69268708]
[1770722601198,5.88865763,84.311,84.27,3.69268708]
[1770722602002,14.73762264,84.356,84.253,94.74]
[1770722602003,5.88864999,84.325,84.28,3.69268708]
[1770722602706,5.88864999,84.325,84.277,10.6898]
[1770722604811,5.88864999,84.325,84.284,10.689]
[1770722610312,5.88864999,84.325,84.28,3.69268708]
[1770722610313,5.86164805,84.321,84.28,3.69268708]
[1770722610616,2.06446102,84.357,84.275,10.6901]
[1770722610617,5.86164805,84.319,84.275,10.6901]
[1770722611204,5.86164805,84.318,84.267,10.6912]
[1770722612220,5.86164805,84.307,84.26,10.6921]
[1770722612611,5.81961289,84.299,84.24,3.69268708]
[1770722612816,5.81961289,84.292,84.248,10.6936]
[1770722613218,5.81961289,84.289,84.248,10.6936]
[1770722613718,16.50811289,84.289,84.248,10.6936]
[1770722613914,5.81961289,84.288,84.248,10.6936]
[1770722615623,5.8080134,84.286,84.24,10.6946]
[1770722616622,3.68936122,84.29,84.24,10.6946]
[1770722616623,5.79179419,84.284,84.24,10.6946]
[1770722617124,5.79179419,84.284,84.23,3.68936122]
[1770722617317,5.79179419,84.284,84.247,10.6937]
[1770722619025,5.79179419,84.284,84.24,14.38396122]
[1770722619218,5.78318655,84.281,84.24,14.38396122]
[1770722619616,5.78318655,84.281,84.24,10.6946]
[1770722620826,10.6896,84.28,84.24,10.6946]
[1770722622528,5.78773068,84.279,84.24,10.6946]
[1770722625327,5.78773068,84.279,84.24,14.38396122]
[1770722625627,5.78773068,84.279,84.24,10.6946]
[1770722626021,10.6884,84.29,84.24,14.38396122]
[1770722626218,10.6884,84.29,84.248,10.6936]
[1770722626630,10.6884,84.29,84.24,3.68936122]
[1770722626631,10.6876,84.296,84.25,3.68936122]
[1770722627835,10.6876,84.296,84.255,10.6927]
[1770722628637,5.78324206,84.302,84.261,10.6919]
[1770722629239,10.6869,84.301,84.26,3.68936122]
[1770722630743,16.48407174,84.301,84.26,3.68936122]
[1770722631229,5.79717174,84.296,84.254,10.6928]
[1770722631935,5.79717174,84.276,84.236,10.695]
[1770722634540,5.79717174,84.276,84.193,22.21701318]
[1770722634541,5.72639683,84.259,84.2,3.68936122]
[1770722635742,5.72639683,84.251,84.213,10.698]
[1770722642857,94.74,84.285,84.18,94.72]
[1770722642858,5.69766695,84.264,84.218,10.6973]
[1770722643648,10.6918,84.263,84.218,10.6973]
[1770722643841,5.69766695,84.276,84.23,3.68936122]
[1770722644046,5.69766695,84.276,84.24,3.68936122]
[1770722644554,5.69766695,84.276,84.23,3.68936122]
[1770722645954,5.69766695,84.276,84.24,10.6946]
[1770722661069,5.75522997,84.274,84.234,10.6954]
[1770722661272,5.75522997,84.269,84.22,3.68936122]
[1770722661461,5.75544859,84.259,84.2,3.68936122]
[1770722661664,5.75544859,84.252,84.2,3.68936122]
[1770722662765,10.6934,84.25,84.211,10.6983]
[1770722662974,3.68936122,84.26,84.211,10.6983]
[1770722662975,5.7387974,84.249,84.211,10.6983]
[1770722664858,10.6937,84.248,84.211,10.6983]
[1770722665470,16.39174257,84.248,84.211,10.6983]
[1770722666766,10.6924,84.258,84.219,10.6973]
[1770722668870,5.72200471,84.271,84.198,21.3999]
[1770722669065,5.72200471,84.276,84.23,3.68936122]
[1770722669264,5.72200471,84.276,84.22,3.68936122]
[1770722669473,5.72200471,84.274,84.22,3.68936122]
[1770722670672,5.73853388,84.271,84.228,10.6961]
[1770722672679,5.73853388,84.271,84.234,10.6954]
[1770722674276,8.81869252,84.27,84.234,10.6954]
[1770722674580,5.73853388,84.271,84.234,10.6954]
[1770722674776,8.81869252,84.27,84.234,10.6954]
[1770722674975,5.73853388,84.271,84.234,10.6954]
[1770722675274,8.81869252,84.27,84.234,10.6954]
[1770722675470,8.81869252,84.269,84.234,10.6954]
[1770722675682,5.73853388,84.271,84.234,10.6954]
[1770722675979,5.77707859,84.269,84.234,10.6954]
[1770722676477,14.60115563,84.268,84.234,10.6954]
[1770722676678,5.77707859,84.268,84.234,10.6954]
[1770722677673,8.82225715,84.267,84.234,10.6954]
[1770722677878,5.77707859,84.268,84.234,10.6954]
[1770722678182,8.82223351,84.267,84.234,10.6954]
[1770722678369,5.77707859,84.268,84.234,10.6954]
[1770722678569,8.82256471,84.267,84.234,10.6954]
[1770722678773,5.77707859,84.268,84.234,10.6954]
[1770722679065,8.82256471,84.267,84.234,10.6954]
[1770722679276,5.77707859,84.268,84.234,10.6954]
[1770722679478,8.82198588,84.267,84.234,10.6954]
[1770722679680,5.77707859,84.268,84.234,10.6954]
[1770722679879,5.77707859,84.268,84.189,22.21701318]
[1770722679880,5.76801555,84.25,84.189,22.21701318]
[1770722680078,5.76801555,84.25,84.186,94.74]
[1770722680079,5.76801555,84.25,84.21,3.69062642]
[1770722680976,9.45929113,84.26,84.21,3.69062642]
[1770722681278,10.6924,84.258,84.222,10.6968]
[1770722683877,5.76866471,84.26,84.222,10.6968]
[1770722684379,10.6916,84.265,84.222,10.6968]
[1770722685477,10.6916,84.265,84.227,10.6962]
[1770722686276,5.74560293,84.281,84.23,3.69062642]
[1770722686477,14.64115243,84.28,84.23,3.69062642]
[1770722686782,5.75959893,84.278,84.23,3.69062642]
[1770722687683,10.6902,84.275,84.237,10.6949]
[1770722689083,5.75959893,84.278,84.245,10.6939]
[1770722689283,10.6891,84.284,84.245,10.6939]
[1770722690579,5.76414458,84.289,84.25,10.6932]
[1770722690780,8.88596879,84.288,84.25,10.6932]
[1770722690983,8.88596879,84.287,84.25,10.6932]
[1770722691185,5.76414458,84.289,84.256,10.6925]
[1770722691487,5.77492373,84.309,84.256,10.6925]
[1770722691685,5.77492373,84.307,84.256,10.6925]
[1770722691880,5.77492373,84.305,84.267,10.6911]
[1770722693380,5.77036815,84.319,84.275,10.6901]
[1770722693692,5.77036815,84.319,84.27,3.68784817]
[1770722694687,5.78186158,84.316,84.275,10.6901]
[1770722699212,5.76743399,84.339,84.29,3.68784817]
[1770722700705,3.68784817,84.34,84.232,35.65]
[1770722700706,5.69231425,84.325,84.283,10.6891]
[1770722700904,5.69231425,84.319,84.26,3.68784817]
[1770722701111,5.69231425,84.31,84.26,3.68784817]
[1770722701297,5.69231425,84.31,84.27,3.68784817]
[1770722702002,5.69231425,84.31,84.28,10.6895]
[1770722703204,10.6849,84.317,84.28,10.6895]
[1770722704002,5.65126238,84.321,84.286,10.6887]
[1770722710812,5.65126238,84.321,84.293,10.6879]
[1770722711418,5.65126238,84.321,84.286,10.6887]
[1770722711918,5.65126238,84.321,84.28,10.6895]
[1770722713821,5.65126238,84.321,84.28,14.37734817]
[1770722714114,5.65126238,84.321,84.286,10.6887]
[1770722716811,5.65126238,84.321,84.296,10.6875]
[1770722718219,5.63983367,84.334,84.296,10.6875]
[1770722718619,5.63983367,84.334,84.303,10.6866]
[1770722721123,5.63983367,84.334,84.297,10.6874]
[1770722724519,5.63983367,84.334,84.304,10.6864]
[1770722724723,10.6813,84.346,84.304,10.6864]
[1770722725126,10.6819,84.341,84.304,10.6864]
[1770722725332,10.6819,84.341,84.298,10.6872]
[1770722726327,16.36890441,84.341,84.298,10.6872]
[1770722727429,5.68700441,84.341,84.307,10.686]
[1770722732236,10.6809,84.348,84.307,10.686]
[1770722732731,16.39340941,84.348,84.307,10.686]
[1770722733031,5.71250941,84.347,84.307,10.686]
[1770722733231,5.71250941,84.344,84.307,10.686]
[1770722733432,5.71250941,84.344,84.3,10.6869]
[1770722734033,5.71250941,84.341,84.306,10.6862]
[1770722735133,5.71552291,84.336,84.297,10.6874]
[1770722735324,5.71552291,84.334,84.297,10.6874]
[1770722735527,3.68784817,84.34,84.297,10.6874]
[1770722735528,5.71552291,84.332,84.297,10.6874]
[1770722736334,5.71552291,84.33,84.297,10.6874]
[1770722738035,3.68506219,84.34,84.297,10.6874]
[1770722738234,14.54794223,84.339,84.303,10.6866]
[1770722738435,14.54794223,84.339,84.273,21.3807]
[1770722738436,5.71498592,84.339,84.3,3.68506219]
[1770722739037,5.68168793,84.35,84.309,10.6858]
[1770722739242,8.83273851,84.349,84.309,10.6858]
[1770722739439,8.83273851,84.348,84.309,10.6858]
[1770722739740,10.681,84.348,84.309,10.6858]
[1770722740526,10.681,84.348,84.264,22.21701318]
[1770722740527,5.71248635,84.328,84.254,21.3857]
[1770722740732,5.71248635,84.326,84.27,3.68506219]
[1770722740930,5.71248635,84.319,84.26,3.68506219]
[1770722741734,5.71248635,84.319,84.274,10.6902]
[1770722742631,5.71248635,84.319,84.282,10.6892]
[1770722748837,5.71248635,84.319,84.288,10.6884]
[1770722752844,94.66,84.354,84.29,3.68506219]
[1770722752845,5.64853624,84.341,84.29,3.68506219]
[1770722753050,5.64853624,84.339,84.29,3.68506219]
[1770722753245,5.64853624,84.337,84.298,10.6872]
[1770722753450,5.64853624,84.335,84.298,10.6872]
[1770722753642,8.90486897,84.334,84.298,10.6872]
[1770722753843,5.64853624,84.332,84.298,10.6872]
[1770722754043,5.64853624,84.33,84.298,10.6872]
[1770722760055,5.62040067,84.338,84.298,10.6872]
[1770722760255,10.6825,84.336,84.298,10.6872]
[1770722760453,5.62384034,84.334,84.291,10.6881]
[1770722760752,5.62384034,84.332,84.291,10.6881]
[1770722760954,5.62384034,84.33,84.291,10.6881]
[1770722764864,5.62384034,84.33,84.28,3.68506219]
[1770722764865,5.61544574,84.328,84.27,3.68506219]
[1770722765164,5.61544574,84.326,84.27,3.68506219]
[1770722765365,3.68506219,84.33,84.27,3.68506219]
[1770722765366,5.61544574,84.324,84.27,3.68506219]
[1770722765566,5.61544574,84.322,84.27,3.68506219]
[1770722765865,5.61544574,84.322,84.283,10.6892]
[1770722766758,5.61544574,84.322,84.28,3.68506219]
[1770722767158,16.29076152,84.332,84.28,3.68506219]
[1770722767359,14.51599964,84.331,84.28,3.68506219]
[1770722767664,14.51599964,84.33,84.28,3.68506219]
[1770722767863,8.90823812,84.329,84.296,10.6874]
[1770722768057,8.90823812,84.328,84.296,10.6874]
[1770722768262,8.90823812,84.328,84.233,35.65]
[1770722768263,5.60776152,84.321,84.279,10.6896]
[1770722768567,5.6141707,84.319,84.279,10.6896]
[1770722768767,5.6141707,84.317,84.279,10.6896]
[1770722769158,5.6141707,84.315,84.279,10.6896]
[1770722769562,5.6141707,84.315,84.272,10.6905]
[1770722769770,5.6141707,84.313,84.272,10.6905]
[1770722769957,5.6141707,84.311,84.272,10.6905]
[1770722775070,10.6843,84.322,84.28,3.68506219]
[1770722775272,5.6899388,84.324,84.28,3.68506219]
[1770722775572,5.6899388,84.324,84.27,3.68506219]
[1770722776178,8.90584005,84.323,84.27,3.68506219]
[1770722776373,5.6899388,84.324,84.28,3.68506219]
[1770722776580,8.90611885,84.323,84.287,10.6886]
[1770722776781,5.6899388,84.324,84.287,10.6886]
[1770722776975,8.90611885,84.323,84.287,10.6886]
[1770722777275,5.6899388,84.324,84.287,10.6886]
[1770722777480,8.90782857,84.323,84.287,10.6886]
[1770722777780,5.6899388,84.324,84.287,10.6886]
[1770722777980,8.90782857,84.323,84.287,10.6886]
[1770722778180,8.90782857,84.322,84.287,10.6886]
[1770722778381,5.7343551,84.341,84.29,3.68506219]
[1770722778577,5.7343551,84.339,84.3,3.68506219]
[1770722778882,5.7343551,84.337,84.29,3.68506219]
[1770722779081,14.64284687,84.336,84.29,3.68506219]
[1770722779276,5.7343551,84.336,84.29,3.68506219]
[1770722779475,5.7343551,84.334,84.297,10.6873]
[1770722779775,5.7343551,84.332,84.297,10.6873]
[1770722779978,5.7343551,84.33,84.297,10.6873]
[1770722780277,8.90866857,84.329,84.297,10.6873]
[1770722780481,8.90866857,84.328,84.297,10.6873]
[1770722780683,8.90866857,84.327,84.297,10.6873]
[1770722780983,8.90866857,84.327,84.272,21.381]
[1770722780984,5.76082668,84.325,84.289,10.6883]
[1770722781280,5.76082668,84.323,84.289,10.6883]
[1770722781478,14.66944767,84.322,84.289,10.6883]
[1770722781672,14.66944767,84.322,84.262,94.68]
[1770722781673,8.90866857,84.321,84.28,3.68506219]
[1770722781874,5.7607791,84.333,84.28,3.68506219]
[1770722782074,8.91016842,84.332,84.28,3.68506219]
[1770722782281,8.91016842,84.331,84.302,10.6867]
[1770722782474,5.7607791,84.332,84.302,10.6867]
[1770722782475,8.91016842,84.33,84.302,10.6867]
[1770722782674,5.7607791,84.332,84.302,10.6867]
[1770722783276,5.7607791,84.332,84.295,10.6876]
[1770722783878,8.909699,84.331,84.295,10.6876]
[1770722784183,8.909699,84.33,84.295,10.6876]
[1770722784383,5.7607791,84.332,84.295,10.6876]
[1770722784584,8.91129726,84.331,84.295,10.6876]
[1770722784788,5.7607791,84.332,84.295,10.6876]
[1770722785083,8.91129726,84.331,84.295,10.6876]
[1770722785384,8.91129726,84.33,84.295,10.6876]
[1770722785572,5.7607791,84.332,84.295,10.6876]
[1770722785777,8.91395559,84.331,84.295,10.6876]
[1770722785977,8.91395559,84.33,84.295,10.6876]
[1770722786178,5.7607791,84.332,84.295,10.6876]
[1770722786379,8.91336859,84.331,84.295,10.6876]
[1770722786678,8.91336859,84.33,84.295,10.6876]
[1770722786877,5.7607791,84.332,84.295,10.6876]
[1770722787079,8.91351696,84.331,84.295,10.6876]
[1770722787279,8.91351696,84.33,84.295,10.6876]
[1770722787481,5.74630179,84.346,84.305,10.6863]
[1770722787676,5.74630179,84.344,84.305,10.6863]
[1770722787879,5.74630179,84.342,84.305,10.6863]
[1770722788085,5.74630179,84.34,84.305,10.6863]
[1770722788386,8.91259233,84.339,84.305,10.6863]
[1770722788586,14.6661975,84.338,84.305,10.6863]
[1770722788781,3.68506219,84.35,84.269,21.3817]
[1770722788782,5.75360517,84.335,84.295,10.6876]
[1770722788985,3.68506219,84.34,84.295,10.6876]
[1770722788986,5.75360517,84.333,84.295,10.6876]
[1770722789186,5.75360517,84.331,84.295,10.6876]
[1770722789486,5.75360517,84.329,84.295,10.6876]
[1770722789680,8.91259233,84.328,84.295,10.6876]
[1770722789886,14.6661975,84.327,84.295,10.6876]
[1770722790088,8.91259233,84.326,84.295,10.6876]
[1770722790287,8.91256543,84.325,84.295,10.6876]
[1770722790488,5.75360517,84.327,84.295,10.6876]
[1770722794591,5.75360517,84.327,84.3,10.6869]
[1770722798595,5.77058085,84.32,84.27,3.68460069]
[1770722798992,5.77058085,84.32,84.28,3.68460069]
[1770722800797,5.77058085,84.32,84.292,10.6879]
[1770722803798,5.77058085,84.32,84.289,10.6883]
[1770722804798,5.77058085,84.32,84.282,10.6892]
[1770722805896,8.8908927,84.319,84.282,10.6892]
[1770722806098,5.73060843,84.317,84.282,10.6892]
[1770722806398,5.71551621,84.309,84.274,10.6902]
[1770722807896,5.71551621,84.32,84.28,10.6895]
[1770722808096,5.71551621,84.318,84.28,10.6895]
[1770722808401,5.71551621,84.316,84.28,10.6895]
[1770722808702,5.71053242,84.314,84.28,10.6895]
[1770722810606,5.71053242,84.314,84.273,10.6903]
[1770722812406,10.6857,84.311,84.273,10.6903]
[1770722812704,5.7833595,84.31,84.273,10.6903]
[1770722819805,5.74995844,84.304,84.265,10.6914]
[1770722824512,5.75733592,84.293,84.252,106.26]
[1770722824815,21.3696,84.318,84.213,21.3961]
[1770722824816,5.75733592,84.291,84.24,3.68671446]
[1770722825011,8.88425316,84.29,84.24,3.68671446]
[1770722825209,5.75733592,84.291,84.24,3.68671446]
[1770722825403,21.3696,84.318,84.236,125.42]
[1770722825404,10.6873,84.298,84.26,3.68671446]
[1770722825716,5.75733592,84.303,84.236,125.42]
[1770722825906,5.75733592,84.299,84.24,3.68671446]
[1770722826215,5.75733592,84.297,84.24,3.68671446]
[1770722826403,3.68671446,84.3,84.236,125.42]
[1770722826404,5.75733592,84.295,84.25,3.68671446]
[1770722827612,5.73777509,84.293,84.24,3.68671446]
[1770722827913,5.73777509,84.291,84.251,10.6932]
[1770722828715,10.6884,84.29,84.251,10.6932]
[1770722829021,5.73777509,84.291,84.251,10.6932]
[1770722830118,10.6875,84.296,84.251,10.6932]
[1770722833618,5.80089464,84.315,84.27,3.68671446]
[1770722833825,5.80089464,84.337,84.29,3.68671446]
[1770722834021,10.6831,84.331,84.29,3.68671446]
[1770722834218,5.80089464,84.329,84.28,3.68671446]
[1770722835726,5.7974418,84.324,84.28,14.37621446]
[1770722838421,5.7974418,84.324,84.286,10.6888]
[1770722839028,3.68671446,84.33,84.293,10.6879]
[1770722839215,5.82495491,84.329,84.293,10.6879]
[1770722842626,10.6825,84.336,84.293,10.6879]
[1770722842828,8.88808256,84.335,84.293,10.6879]
[1770722843022,10.6829,84.333,84.293,10.6879]
[1770722843223,5.80051263,84.331,84.293,10.6879]
[1770722844026,5.80051263,84.329,84.287,10.6887]
[1770722847431,5.80051263,84.329,84.293,10.6878]
[1770722856336,5.80051263,84.329,84.299,10.6871]
[1770722856532,14.68055411,84.339,84.299,10.6871]
[1770722856734,5.79275071,84.339,84.29,3.68671446]
[1770722856930,5.79275071,84.337,84.28,3.68671446]
[1770722857134,5.79275071,84.335,84.28,3.68671446]
[1770722857633,5.79275071,84.333,84.28,3.68671446]
[1770722857841,5.79275071,84.331,84.293,10.6879]
[1770722860339,10.6842,84.323,84.281,10.6893]
[1770722860544,5.7886662,84.322,84.281,10.6893]
[1770722861947,3.68491759,84.3,84.253,35.08138099]
[1770722862648,94.68,84.321,84.253,35.08138099]
[1770722862649,3.68491759,84.31,84.253,35.08138099]
[1770722862946,8.8878449,84.309,84.253,35.08138099]
[1770722863140,8.8878449,84.308,84.253,35.08138099]
[1770722863343,8.8878449,84.307,84.253,35.08138099]
[1770722863542,8.8878449,84.306,84.253,35.08138099]
[1770722863847,10.6872,84.299,84.255,35.08006746]
[1770722871351,10.6863,84.306,84.259,35.09949399]
[1770722871540,3.68491759,84.32,84.261,35.09891765]
[1770722871746,9.0352671,84.319,84.261,35.09891765]
[1770722871951,9.0352671,84.318,84.261,35.09891765]
[1770722872139,3.68491759,84.32,84.261,35.09891765]
[1770722872140,9.0352671,84.317,84.261,35.09891765]
[1770722872345,9.0352671,84.316,84.261,35.09891765]
[1770722872553,9.0352671,84.315,84.261,35.09891765]
[1770722872854,19.7205671,84.314,84.269,35.07009753]
[1770722873043,9.0352671,84.313,84.269,35.07009753]
[1770722873246,9.0352671,84.312,84.269,35.07009753]
[1770722873553,9.0352671,84.311,84.271,35.07009753]
[1770722873748,9.0352671,84.31,84.271,35.07009753]
[1770722873942,9.0352671,84.309,84.271,35.07009753]
[1770722874146,10.6851,84.316,84.273,35.06951368]
[1770722874452,9.03906492,84.315,84.273,35.06951368]
[1770722874655,9.03906492,84.314,84.273,35.06951368]
[1770722874952,9.03906492,84.313,84.273,35.06951368]
[1770722875153,9.03906492,84.312,84.273,35.06951368]
[1770722875345,9.03906492,84.311,84.273,35.06951368]
[1770722875545,9.03906492,84.31,84.273,35.06951368]
[1770722875752,9.03906492,84.309,84.273,35.06951368]
[1770722875950,9.03906492,84.308,84.273,35.06951368]
[1770722876250,9.04146739,84.307,84.273,35.06951368]
[1770722876454,10.6851,84.316,84.273,35.06951368]
[1770722876654,9.04146739,84.315,84.273,35.06951368]
[1770722876957,9.04146739,84.314,84.273,35.06951368]
[1770722877255,9.04146739,84.313,84.273,35.06951368]
[1770722877456,10.6851,84.316,84.273,35.06951368]
[1770722877457,9.04146739,84.312,84.273,35.06951368]
[1770722877648,9.04146739,84.311,84.273,35.06951368]